Cogmind - Beta 10.2 @@@ ROGUE MODE // 2022.01.16 @ 20:37:58 Player: RobearGWJ Result: Destroyed by G-34 Mercenary with Small Laser Performance ------------- Evolutions (1) 500 Regions Visited (3) 600 Robots Destroyed (39) 195 Value Destroyed (724) 724 Prototype IDs (2) 40 Alien Tech Used (0) 0 Bonus (0) 0 TOTAL SCORE: 2059 Bonus ------- None Cogmind --------- Core Integrity 0/400 Matter 123/300 Energy 100/100 System Corruption 8% Temperature Cool (6) Movement Core (550) Ox10 Location -9/Mines Parts ------- > --- POWER (1) -------- (None) > --- PROPULSION (3) --- (None) > --- UTILITY (3) ------ High-capacity Storage Unit > --- WEAPON (2) ------- (None) > --- INVENTORY (12) --- Light Ion Engine Heat Sink Small Laser Ion Cannon Assault Rifle Improved Datajack Peak State ------------ > --- POWER ------------ Light Ion Engine > --- PROPULSION ------- Aluminum Leg Aluminum Leg Aluminum Leg > --- UTILITY ---------- Heat Shielding High-capacity Storage Unit Shield Generator > --- WEAPON ----------- Heavy Assault Rifle Grenade Launcher > --- INVENTORY -------- Aluminum Leg Heat Sink Small Laser Ion Cannon Assault Rifle Improved Datajack [Rating: 13] Favorites ----------- Power Ion Engine Engine Ion Engine Propulsion Aluminum Leg Treads Light Treads Leg Aluminum Leg Utility Heat Shielding Device Heat Shielding Storage Small Storage Unit Processor Signal Interpreter Weapon Grenade Launcher Energy Gun Small Laser Energy Cannon Beam Cannon Ballistic Gun Assault Rifle Launcher Grenade Launcher Build | -11 -10 -9 -9 ------- Run | Scr Mat Mat Min Slots Evolved 2 | . . 2 . Power . | . . . . Propulsion 1 | . . 1 . Utility 1 | . . 1 . Weapon . | . . . . Parts Attached 28 | 6 9 11 2 Power 5 | 1 1 3 . Engine 5 | 1 1 3 . Core . | . . . . Reactor . | . . . . Propulsion 10 | 2 2 4 2 Treads 3 | 2 . 1 . Leg 7 | . 2 3 2 Wheel . | . . . . Hover . | . . . . Flight . | . . . . Utility 5 | 1 1 3 . Device 2 | . . 2 . Storage 2 | 1 . 1 . Processor 1 | . 1 . . Hackware . | . . . . Protection . | . . . . Artifact . | . . . . Weapon 8 | 2 5 1 . Energy Gun 2 | . 2 . . Energy Cannon 1 | . 1 . . Ballistic Gun 4 | 2 1 1 . Ballistic Cannon . | . . . . Launcher 1 | . 1 . . Special Weapon . | . . . . Impact Weapon . | . . . . Slashing Weapon . | . . . . Piercing Weapon . | . . . . Special Melee Weapon . | . . . . Unidentified Prototypes . | . . . . Parts Lost 11 | . 1 2 8 Power 2 | . 1 . 1 Propulsion 3 | . . . 3 Utility 3 | . . 1 2 Weapon 3 | . . 1 2 Highest Loss Streak 8 | . 1 2 8 Average Slot Usage (%) 87 | . 97 79 90 Engine 8 | . 13 4 9 Treads 7 | . 21 . . Leg 19 | . 6 24 30 Device 12 | . . 19 18 Storage 12 | . 14 11 11 Processor 4 | . 12 . . Energy Gun 1 | . 3 . . Energy Cannon 2 | . 5 . . Ballistic Gun 9 | . 10 7 10 Launcher 9 | . 8 11 9 Naked Turns . | . . . . Heaviest Build 44 | 13 15 44 44 Greatest Support 40 | 40 40 30 30 Greatest Overweight (x) 4 | 1 . 4 4 Average Overweight (x) 1 | . . 2 1 Largest Inventory Capacity 12 | 6 6 12 12 Average Capacity 8 | 5 6 10 12 Most Carried 9 | 3 6 9 8 Average Carried 5 | 2 4 5 6 Final Capacity 12 | 6 6 12 12 Final Carried 8 | 3 4 8 6 Class Distribution -------------------- 100% | Mutant Dominant Class ---------------- Mutant | -10/Materials Mutant | -9/Materials Mutant | -9/Mines Resources | -11 -10 -9 -9 ----------- Run | Scr Mat Mat Min Matter Collected 687 | 186 251 250 . Remotely . | . . . . Salvage Created 712 | . 301 411 . Parts 85 | . 35 50 . Haulers Intercepted . | . . . . Recyclers Shooed 2 | . 1 1 . Parts Field Recycled . | . . . . Retrieved Matter . | . . . . Parts Self-Destructed . | . . . . Prevented . | . . . . Kills | -11 -10 -9 -9 ------- Run | Scr Mat Mat Min Combat Hostiles Destroyed 21 | . 10 11 . Guns 6 | . 5 1 . Cannons 2 | . 2 . . AOE 13 | . 3 10 . Classes Destroyed 7 | . 6 1 . Worker 5 | . 1 4 . Builder 8 | . 1 7 . Tunneler 1 | . 1 . . Watcher 4 | . 2 2 . Swarmer 9 | . 6 3 . Grunt 8 | . 4 4 . Sentry 4 | . . 4 . Best Kill Streak 7 | . 4 7 . Combat Bots Only 4 | . 3 4 . Max Kills in Single Turn 3 | . 2 3 . Gunslinging . | . . . . Exploded 2 | . 1 2 . Melee . | . . . . Uniques/NPCs Destroyed . | . . . . Combat | -11 -10 -9 -9 -------- Run | Scr Mat Mat Min Damage Taken 1473 | . 272 497 704 Core 477 | . 73 100 304 Absorbed by Shields 122 | . . 84 38 Core Remaining (%) 85 | 100 70 . . Volleys Fired 56 | . 30 25 1 Largest 2 | . 2 2 1 Hottest 90 | . 90 90 23 Shots Fired 102 | . 54 45 3 Gun 61 | . 42 16 3 Cannon 9 | . 5 4 . Launcher 32 | . 7 25 . Special . | . . . . Kinetic 48 | . 29 16 3 Thermal 22 | . 18 4 . Explosive 32 | . 7 25 . Electromagnetic . | . . . . Robot Hit Streak 13 | . 6 13 2 Robot Miss Streak 5 | . 5 2 1 Penetration Max . | . . . . Secondary Targets . | . . . . Shots Hit Robots 66 | . 32 32 2 Core Hits 60 | . 18 38 4 Critical Hits . | . . . . Critical Kills . | . . . . Critical Parts Destroyed . | . . . . Melee Attacks . | . . . . Impact . | . . . . Slashing . | . . . . Piercing . | . . . . Sneak Attacks . | . . . . Combat Hostiles . | . . . . Follow-up Attacks . | . . . . Damage Inflicted 2064 | . 654 1298 112 Guns 419 | . 260 132 27 Cannons 142 | . 70 72 . Explosions 1418 | . 324 1094 . Melee . | . . . . Ramming 85 | . . . 85 Kinetic 343 | . 184 132 27 Thermal 218 | . 146 72 . Explosive 1418 | . 324 1094 . Electromagnetic . | . . . . Impact . | . . . . Slashing . | . . . . Piercing . | . . . . Highest Corruption 8 | . . 8 8 Average Corruption 8 | . . 8 8 Corruption Purged . | . . . . Effects 40 | . . 27 13 Message Errors 6 | . . 4 2 Matter Fused 9 | . . 5 4 Heat Flow Errors 5 | . . 3 2 Energy Discharges 7 | . . 7 . Data Loss (minor) 5 | . . 3 2 Data Loss (major) 1 | . . 1 . Misfires 3 | . . 1 2 Targeting Errors 4 | . . 3 1 Overload Shots . | . . . . Overflow Damage 43 | . 31 12 . Projectiles . | . . . . Explosions 43 | . 31 12 . Melee . | . . . . Knockbacks . | . . . . Impact . | . . . . Kinetic . | . . . . Secondary . | . . . . Self-Inflicted Damage 153 | . 48 82 23 Shots 6 | . 2 4 . Rammed 18 | . . . 18 Targets Rammed 26 | . . . 26 Kicked 8 | . . . 8 Crushed . | . . . . Highest Temperature 234 | . 120 234 196 Average Temperature 58 | . 37 57 103 Received Heat Transfer 340 | . 36 15 289 Siege Activations . | . . . . Robots Corrupted . | . . . . Combat Hostiles . | . . . . Parts Fried . | . . . . Impact Corruptions . | . . . . Robots Melted . | . . . . Combat Hostiles . | . . . . Parts Melted . | . . . . Heat Transferred 471 | . 323 148 . Parts Sabotaged . | . . . . Parts Stolen . | . . . . Parts Stripped . | . . . . Power Chain Reactions . | . . . . Missiles Intercepted . | . . . . Alert | -11 -10 -9 -9 ------- Run | Scr Mat Mat Min Peak Influence 270 | . 172 270 67 Initial 67 | . . 51 67 Average 112 | . 76 185 58 Maximum Alert Level 1 | . . 1 . Low Security (%) 75 | 100 100 44 100 Level 1 24 | . . 55 . Level 2 . | . . . . Level 3 . | . . . . Level 4 . | . . . . Level 5 . | . . . . High Security . | . . . . Max Security . | . . . . Squads Dispatched 4 | . 1 3 . Investigation 1 | . 1 . . Extermination . | . . . . Reinforcement 3 | . . 3 . Assault . | . . . . Garrison . | . . . . Intercept . | . . . . Construction Impeded 1 | . . 1 . Haulers Reinforced . | . . . . Stealth | -11 -10 -9 -9 --------- Run | Scr Mat Mat Min Distress Signals 5 | . 2 3 . Communications Jammed . | . . . . Distress Signals . | . . . . Times Spotted 30 | . 13 15 2 Peak Tracking Total 4 | . 4 4 2 Tactical Retreats 1 | . 1 . . Traps | -11 -10 -9 -9 ------- Run | Scr Mat Mat Min Traps Triggered 3 | . 3 . . Indirectly . | . . . . Trap Hack Attempts . | . . . . Triggered . | . . . . Disarmed . | . . . . Reprogrammed . | . . . . Reused . | . . . . Traps Extracted . | . . . . Installed . | . . . . Triggered . | . . . . Machines | -11 -10 -9 -9 ---------- Run | Scr Mat Mat Min Machines Disabled 4 | . 1 3 . Max in Single Turn 2 | . 1 2 . Machines Sabotaged . | . . . . Garrisons Compromised . | . . . . Overloaded Fab Kills . | . . . . Fab Network Shutdowns . | . . . . Hacking | -11 -10 -9 -9 --------- Run | Scr Mat Mat Min Machines Accessed 8 | . 5 3 . Terminals 5 | . 3 2 . Fabricators . | . . . . Repair Stations . | . . . . Recycling Units 2 | . 2 . . Scanalyzers 1 | . . 1 . Garrison Access . | . . . . Total Hacks 18 | . 14 4 . Successful 9 | . 8 1 . Failed 9 | . 6 3 . Catastrophic . | . . . . Database Lockouts . | . . . . Manual . | . . . . Terminals 10 | . 7 3 . Fabricators . | . . . . Repair Stations . | . . . . Recycling Units 7 | . 7 . . Scanalyzers 1 | . . 1 . Garrison Access . | . . . . Terminal Hacks 6 | . 5 1 . Record 4 | . 3 1 . Prototype ID Bank 1 | . 1 . . Emergency Access Points 1 | . 1 . . Fabricator Hacks . | . . . . Repair Station Hacks . | . . . . Recycling Unit Hacks 3 | . 3 . . Recycle Component 1 | . 1 . . Process 1 | . 1 . . Report Inventory 1 | . 1 . . Scanalyzer . | . . . . Garrison Access Hacks . | . . . . Unauthorized Hacks . | . . . . Terminals . | . . . . Fabricators . | . . . . Repair Stations . | . . . . Recycling Units . | . . . . Scanalyzers . | . . . . Garrison Access . | . . . . Data Cores Recovered . | . . . . Used . | . . . . Hacking Detections 5 | . 4 1 . Full Trace Events 2 | . 2 . . Feedback Events . | . . . . Feedback Blocked . | . . . . Robot Schematics Acquired . | . . . . Robots Built . | . . . . Matter . | . . . . Time . | . . . . Total Robot Build Rating . | . . . . Part Schematics Acquired . | . . . . Parts Built . | . . . . Matter . | . . . . Time . | . . . . Total Part Build Rating . | . . . . Parts Repaired . | . . . . Time . | . . . . Parts Recycled 1 | . 1 . . Recycled Matter 13 | . 13 . . Retrieved Matter . | . . . . Retrieved Components . | . . . . Parts Scanalyzed . | . . . . Part Schematics Acquired . | . . . . Parts Damaged . | . . . . Bothacking | -11 -10 -9 -9 ------------ Run | Scr Mat Mat Min Used RIF Installer . | . . . . Robots Hacked . | . . . . Non-combat . | . . . . Combat . | . . . . Robot Hacks Applied . | . . . . Relay Couplers Released . | . . . . Robots Rewired . | . . . . Allies Hacked . | . . . . Hacks Repelled . | . . . . Allies | -11 -10 -9 -9 -------- Run | Scr Mat Mat Min Total Allies . | . . . . Largest Group . | . . . . Highest-Rated Group . | . . . . Highest-Rated Ally . | . . . . Total Orders . | . . . . Ally Attacks . | . . . . Total Damage . | . . . . Kills . | . . . . Allies Corrupted . | . . . . Allies Melted . | . . . . Intel | -11 -10 -9 -9 ------- Run | Scr Mat Mat Min Robot Analysis Total . | . . . . Derelict Logs Recovered . | . . . . Drone Launches . | . . . . Drone Recoveries . | . . . . Exploration | -11 -10 -9 -9 ------------- Run | Scr Mat Mat Min Turns Passed 1987 | 239 583 867 298 Spaces Moved 1034 | 144 323 405 162 Core 5 | 5 . . . Treads 380 | 139 223 18 . Legs 649 | . 100 387 162 Wheels . | . . . . Hover . | . . . . Flight . | . . . . Fastest Speed 50 | 50 120 120 150 Average Speed 166 | 156 147 190 150 Slowest Speed 240 | 160 160 240 240 Overloaded Moves . | . . . . Propulsion Burnouts . | . . . . Robots Hopped . | . . . . Cave-ins Triggered 1 | . . 1 . Exploration Rate (%) 31 | 11 55 30 30 Regions Visited 3 Branch Regions 1 Pre-discovered Areas . | . . . . Known Exits Taken 1 | . 1 . . Unknown Exits Taken 2 | 1 . 1 . Scrap Searched . | . . . . Spaces Dug . | . . . . Terrain Destroyed 184 | . 43 141 . Melee . | . . . . Projectile . | . . . . AOE 184 | . 43 141 . Terrain Rammed . | . . . . Walls Destroyed . | . . . . Machines Disabled . | . . . . Actions | -11 -10 -9 -9 --------- Run | Scr Mat Mat Min Total 1182 | 158 374 459 191 Wait . | . . . . Move 1031 | 143 322 404 162 Hop . | . . . . Pick Up 28 | 9 7 12 . Fast Attach 2 | . 2 . . Attach 14 | 6 1 5 2 Detach 2 | . . 2 . Swap 12 | . 6 6 . Drop 11 | . 6 5 . Fire 56 | . 30 25 1 Melee . | . . . . Ram 3 | . . . 3 Kick 23 | . . . 23 Crush . | . . . . Escape Stasis . | . . . . Rewire . | . . . . Trap . | . . . . Miscellaneous . | . . . . Route ------- -11/Scrapyard -10/Materials (discovered 2 exits: *Mat / *Min) -9/Materials -9/Mines History --------- Turn | Location | Event 25 | -11/Scrapyard | Discovered new exit (range 16) 240 | -11/Scrapyard | Entered Materials 317 | -10/Materials | Build established: Mutant 324 | -10/Materials | Discovered new exit (range 7) 449 | -10/Materials | Identified exit to Mines 782 | -10/Materials | Discovered new exit (range 15) 821 | -10/Materials | Identified exit to Materials 823 | -10/Materials | Entered another Materials area 823 | -9/Materials | Evolved 2 slots: Propulsion x1, Utility x1 867 | -9/Materials | Crushed by falling debris 1636 | -9/Materials | Discovered new exit (range 12) 1690 | -9/Materials | Entered Mines 1700 | -9/Mines | Met a Derelict bent on vengeance 1967 | -9/Mines | Core integrity fell below 50% 1982 | -9/Mines | Core integrity fell below 20% 1988 | -9/Mines | Destroyed by G-34 Mercenary with Small Laser Last Messages --------------- Slammed into G-34 Mercenary. Aluminum Leg permanently disabled. Destabilizing: Short circuit. Kicked G-34 Mercenary out of the way. Heat Shielding destroyed. Slammed into G-34 Mercenary. Lgt. Ion Engine destroyed. Slammed into G-34 Mercenary. Kicked G-34 Mercenary out of the way. Broken Aluminum Leg destroyed. Slammed into G-34 Mercenary. Aluminum Leg destroyed. Slammed into G-34 Mercenary. Hvy. Assault Rifle destroyed. Slammed into G-34 Mercenary. Kicked G-47 Trooper out of the way. Aluminum Leg destroyed. Slammed into G-47 Trooper. 6BCLTCWVBZE K2L%1SRVMUTS<